fUST/lending_fUST_20250702
["ID","MTS","AMOUNT","RATE_DAILY","PERIOD"]
[369038101,1751441448461,-700.62,0.0001726,2]
[369038102,1751441448472,-460.0,0.0001726,2]
[369038103,1751441448482,-460.0,0.0001726,2]
[369038104,1751441448491,-460.0,0.0001726,2]
[369038105,1751441448501,-460.0,0.0001726,2]
[369038106,1751441448511,-469.0,0.0001726,2]
[369038107,1751441448520,-460.0,0.0001726,2]
[369038108,1751441448531,-536.5,0.0001726,2]
[369038109,1751441448541,-460.0,0.0001726,2]
[369038110,1751441448550,-460.0,0.0001726,2]
[369038111,1751441448560,-460.0,0.0001726,2]
[369038112,1751441448570,-460.0,0.0001726,2]
[369038113,1751441448580,-151.0,0.0001726,2]
[369038114,1751441448590,-460.0,0.0001726,2]
[369038115,1751441448599,-460.0,0.0001726,2]
[369038117,1751441448609,-460.0,0.0001726,2]
[369038119,1751441448618,-460.0,0.0001726,2]
[369038121,1751441448628,-460.0,0.0001726,2]
[369038123,1751441448637,-460.0,0.0001726,2]
[369038125,1751441448647,-471.973154,0.0001726,2]
[369038127,1751441448657,-471.973154,0.0001726,2]
[369038129,1751441448666,-151.0,0.0001726,2]
[369038131,1751441448676,-151.0,0.0001726,2]
[369038133,1751441448686,-151.0,0.0001726,2]
[369038135,1751441448695,-460.0,0.0001726,2]
[369038137,1751441448704,-1338.344423,0.0001726,2]
[369038139,1751441448714,-1338.344423,0.0001726,2]
[369038141,1751441448724,-460.0,0.0001726,2]
[369038143,1751441448735,-235.65818107,0.0001726,2]
[369038145,1751441448745,-460.0,0.0001726,2]
[369038147,1751441448754,-460.0,0.0001726,2]
[369038149,1751441448764,-460.0,0.0001726,2]
[369038151,1751441448773,-460.0,0.0001726,2]
[369038153,1751441448782,-151.0,0.0001726,2]
[369038155,1751441448791,-460.0,0.0001726,2]
[369038157,1751441448801,-460.0,0.0001726,2]
[369038159,1751441448810,-460.0,0.0001726,2]
[369038161,1751441448820,-480.20217855,0.0001726,2]
[369038163,1751441448831,-460.0,0.0001726,2]
[369038165,1751441448840,-556.67,0.0001726,2]
[369038167,1751441448849,-659.26,0.0001726,2]
[369038169,1751441448859,-460.0,0.0001726,2]
[369038171,1751441448868,-460.0,0.0001726,2]
[369038173,1751441448877,-460.0,0.0001726,2]
[369038175,1751441448887,-168.046531,0.0001726,2]
[369038177,1751441448896,-168.046531,0.0001726,2]
[369038179,1751441448906,-460.0,0.0001726,2]
[369038181,1751441448916,-151.0,0.0001726,2]
[369038183,1751441448925,-547.13,0.0001726,2]
[369038185,1751441448934,-460.0,0.0001726,2]
[369038187,1751441448947,-705.14,0.0001726,2]
[369038189,1751441448956,-1940.82,0.0001726,2]
[369038191,1751441448965,-460.0,0.0001726,2]
[369038193,1751441448974,-460.0,0.0001726,2]
[369038195,1751441448985,-460.0,0.0001726,2]
[369038197,1751441448994,-460.0,0.0001726,2]
[369038199,1751441449004,-460.0,0.0001726,2]
[369038201,1751441449013,-712.66,0.0001726,2]
[369038203,1751441449024,-460.0,0.0001726,2]
[369038205,1751441449033,-460.0,0.0001726,2]
[369038207,1751441449042,-460.0,0.0001726,2]
[369038209,1751441449051,-819.74,0.0001726,2]
[369038211,1751441449061,-5214.35,0.0001726,2]
[369038213,1751441449071,-151.0,0.0001726,2]
[369038215,1751441449080,-151.0,0.0001726,2]
[369038216,1751441449089,-1560.64,0.0001726,2]
[369038219,1751441449099,-460.0,0.0001726,2]
[369038220,1751441449109,-664.930069,0.0001726,2]
[369038223,1751441449119,-664.930069,0.0001726,2]
[369038225,1751441449128,-821.2,0.0001726,2]
[369038227,1751441449138,-646.41,0.0001726,2]
[369038228,1751441449147,-1196.87,0.0001726,2]
[369038231,1751441449157,-3084.42,0.0001726,2]
[369038233,1751441449166,-1468.84,0.0001726,2]
[369038235,1751441449176,-460.0,0.0001726,2]
[369038237,1751441449186,-460.0,0.0001726,2]
[369038239,1751441449195,-460.0,0.0001726,2]
[369038240,1751441449204,-382.32938888,0.0001726,2]
[369038243,1751441449214,-460.0,0.0001726,2]
[369038245,1751441449223,-460.0,0.0001726,2]
[369038246,1751441449232,-460.0,0.0001726,2]
[369038248,1751441449242,-825.96,0.0001726,2]
[369038250,1751441449251,-635.85,0.0001726,2]
[369038252,1751441449261,-2951.4,0.0001726,2]
[369038254,1751441449270,-460.0,0.0001726,2]
[369038257,1751441449280,-460.0,0.0001726,2]
[369038259,1751441449289,-460.0,0.0001726,2]
[369038261,1751441449299,-1024.46,0.0001726,2]
[369038263,1751441449308,-744.53,0.0001726,2]
[369038264,1751441449318,-151.0,0.0001726,2]
[369038266,1751441449327,-460.0,0.0001726,2]
[369038268,1751441449336,-153.373957,0.0001726,2]
[369038270,1751441449345,-460.0,0.0001726,2]
[369038272,1751441449355,-460.0,0.0001726,2]
[369038274,1751441449365,-1355.15,0.0001726,2]
[369038276,1751441449374,-151.0,0.0001726,2]
[369038278,1751441449383,-153.373957,0.0001726,2]
[369038280,1751441449393,-460.0,0.0001726,2]
[369038282,1751441449403,-460.0,0.0001726,2]
[369038284,1751441449414,-632.78,0.0001726,2]
[369038286,1751441449424,-700.68142,0.0001726,2]
[369038288,1751441449433,-460.0,0.0001726,2]
[369038290,1751441449443,-460.0,0.0001726,2]
[369038292,1751441449452,-700.68142,0.0001726,2]
[369038294,1751441449461,-460.0,0.0001726,2]
[369038296,1751441449471,-460.0,0.0001726,2]
[369038298,1751441449480,-276.12521588,0.0001726,2]
[369038300,1751441449489,-460.0,0.0001726,2]
[369038302,1751441449499,-460.0,0.0001726,2]
[369038304,1751441449508,-460.0,0.0001726,2]
[369038306,1751441449517,-460.0,0.0001726,2]
[369038308,1751441449527,-460.0,0.0001726,2]
[369038310,1751441449537,-2453.99,0.0001726,2]
[369038312,1751441449546,-1406.74,0.0001726,2]
[369038313,1751441449556,-151.0,0.0001726,2]
[369038315,1751441449565,-726.69,0.0001726,2]
[369038316,1751441449575,-460.0,0.0001726,2]
[369038318,1751441449585,-2646.04,0.0001726,2]
[369038319,1751441449594,-460.0,0.0001726,2]
[369038321,1751441449604,-460.0,0.0001726,2]
[369038322,1751441449613,-151.0,0.0001726,2]
[369038324,1751441449622,-460.0,0.0001726,2]
[369038326,1751441449632,-898.21,0.0001726,2]
[369038327,1751441449641,-151.0,0.0001726,2]
[369038329,1751441449650,-460.0,0.0001726,2]
[369038330,1751441449660,-3391.71,0.0001726,2]
[369038332,1751441449669,-660.44,0.0001726,2]
[369038333,1751441449679,-585.11,0.0001726,2]
[369038335,1751441449688,-460.0,0.0001726,2]
[369038336,1751441449698,-311.09944615,0.0001726,2]
[369038338,1751441449707,-460.0,0.0001726,2]
[369038339,1751441449716,-716.13,0.0001726,2]
[369038341,1751441449725,-460.0,0.0001726,2]
[369038342,1751441449736,-635.3,0.0001726,2]
[369038344,1751441449747,-460.0,0.0001726,2]
[369038346,1751441449762,-460.0,0.0001726,2]
[369038347,1751441449771,-151.0,0.0001726,2]
[369038349,1751441449780,-460.0,0.0001726,2]
[369038350,1751441449789,-460.0,0.0001726,2]
[369038352,1751441449799,-460.0,0.0001726,2]
[369038354,1751441449809,-151.0,0.0001726,2]
[369038355,1751441449819,-460.0,0.0001726,2]
[369038357,1751441449828,-460.0,0.0001726,2]
[369038359,1751441449836,-151.0,0.0001726,2]
[369038360,1751441449845,-608.54,0.0001726,2]
[369038362,1751441449854,-965.77,0.0001726,2]
[369038363,1751441449863,-1763.88,0.0001726,2]
[369038365,1751441449873,-633.96,0.0001726,2]
[369038367,1751441449885,-460.0,0.0001726,2]
[369038368,1751441449894,-465.17,0.0001726,2]
[369038370,1751441449904,-4271.35,0.0001726,2]
[369038372,1751441449913,-460.0,0.0001726,2]
[369038373,1751441449922,-1528.22,0.0001726,2]
[369038375,1751441449931,-151.0,0.0001726,2]
[369038377,1751441449948,-552.73,0.0001726,2]
[369038378,1751441449963,-460.0,0.0001726,2]
[369038380,1751441449973,-5813.8,0.0001726,2]
[369038382,1751441449982,-605.07,0.0001726,2]
[369038383,1751441449991,-1964.86,0.0001726,2]
[369038385,1751441450001,-460.0,0.0001726,2]
[369038386,1751441450010,-460.0,0.0001726,2]
[369038388,1751441450021,-585.87,0.0001726,2]
[369038389,1751441450030,-1257.46,0.0001726,2]
[369038391,1751441450039,-560.53,0.0001726,2]
[369038393,1751441450048,-460.0,0.0001726,2]
[369038394,1751441450058,-460.0,0.0001726,2]
[369038396,1751441450068,-460.0,0.0001726,2]
[369038398,1751441450077,-650.11,0.0001726,2]
[369038399,1751441450086,-616.68,0.0001726,2]
[369038401,1751441450095,-460.0,0.0001726,2]
[369038403,1751441450105,-1721.05050748,0.00017349,2]
[369038404,1751441450114,-500.0,0.00017397,2]
[369038406,1751441450123,-711.28665496,0.00017398,2]
[369038407,1751441450132,-500.0,0.00017424,2]
[369038409,1751441450142,-1345.43,0.00017433,2]
[369038411,1751441450151,-1345.43,0.00017433,2]
[369038412,1751441450160,-1345.43,0.00017433,2]
[369038414,1751441450169,-1345.43,0.00017433,2]
[369038415,1751441450179,-1345.43,0.00017433,2]
[369038417,1751441450188,-1345.43,0.00017433,2]
[369038419,1751441450198,-1345.43,0.00017433,2]
[369038420,1751441450207,-1345.43,0.00017433,2]
[369038422,1751441450216,-1345.66240115,0.00017433,2]
[369038424,1751441450225,-151.0,0.00017433,2]
[369038425,1751441450234,-151.0,0.00017433,2]
[369038427,1751441450244,-731.405014,0.00017434,2]
[369038428,1751441450253,-731.405014,0.00017434,2]
[369038430,1751441450263,-269.761555,0.00017434,2]
[369038432,1751441450272,-520.175804,0.00017434,2]
[369038433,1751441450280,-151.0,0.00017434,2]
[369038435,1751441450289,-151.0,0.00017434,2]
[369038437,1751441450298,-151.0,0.00017434,2]
[369038438,1751441450307,-262.228203,0.00017434,2]
[369038440,1751441450316,-262.228203,0.00017434,2]
[369038441,1751441450326,-151.0,0.00017434,2]
[369038443,1751441450335,-151.0,0.00017434,2]
[369038445,1751441450344,-151.0,0.00017434,2]
[369038446,1751441450353,-151.897169,0.00017434,2]
[369038448,1751441450362,-151.0,0.00017434,2]
[369038449,1751441450371,-151.0,0.00017434,2]
[369038451,1751441450380,-471.973154,0.00017434,2]
[369038453,1751441450389,-471.973154,0.00017434,2]
[369038454,1751441450398,-151.0,0.00017434,2]
[369038456,1751441450407,-151.0,0.00017434,2]
[369038457,1751441450416,-500.0,0.00017452,2]
[369038467,1751441450533,-1500.0,0.00017468,2]
[369038469,1751441450557,-500.0,0.00017479,2]
[369038470,1751441450567,-500.0,0.00017507,2]
[369038472,1751441450576,-502.40315064,0.00017521,2]
[369038474,1751441450585,-500.0,0.00017534,2]
[369038475,1751441450594,-460.0,0.00017534,2]
[369038477,1751441450606,-460.0,0.00017534,2]
[369038479,1751441450616,-460.0,0.00017534,2]
[369038480,1751441450625,-460.0,0.00017534,2]
[369038482,1751441450633,-460.0,0.00017534,2]
[369038483,1751441450643,-460.0,0.00017534,2]
[369038485,1751441450652,-460.0,0.00017534,2]
[369038487,1751441450661,-465.86405709,0.00017534,2]
[369038488,1751441450670,-460.0,0.00017534,2]
[369038490,1751441450679,-460.0,0.00017534,2]
[369038492,1751441450689,-519.87645779,0.00017534,2]
[369038493,1751441450699,-460.0,0.00017534,2]
[369038495,1751441450708,-460.0,0.00017534,2]
[369038496,1751441450718,-460.0,0.00017534,2]
[369038498,1751441450727,-460.0,0.00017534,2]
[369038500,1751441450737,-735.62,0.00017534,2]
[369038501,1751441450746,-700.62,0.00017534,2]
[369038503,1751441450756,-460.0,0.00017534,2]
[369038504,1751441450765,-460.0,0.00017534,2]
[369038506,1751441450775,-460.0,0.00017534,2]
[369038508,1751441450785,-460.0,0.00017534,2]
[369038509,1751441450795,-469.0,0.00017534,2]
[369038511,1751441450804,-460.0,0.00017534,2]
[369038513,1751441450814,-536.5,0.00017534,2]
[369038514,1751441450823,-460.0,0.00017534,2]
[369038516,1751441450834,-460.0,0.00017534,2]
[369038518,1751441450843,-460.0,0.00017534,2]
[369038519,1751441450852,-460.0,0.00017534,2]
[369038521,1751441450860,-151.0,0.00017534,2]
[369038523,1751441450870,-460.0,0.00017534,2]
[369038524,1751441450880,-460.0,0.00017534,2]
[369038526,1751441450890,-502.78196835,0.00017534,2]
[369038528,1751441450899,-460.0,0.00017534,2]
[369038529,1751441450908,-460.0,0.00017534,2]
[369038531,1751441450917,-460.0,0.00017534,2]
[369038532,1751441450927,-151.0,0.00017534,2]
[369038534,1751441450937,-460.0,0.00017534,2]
[369038536,1751441450949,-1338.344423,0.00017534,2]
[369038537,1751441450958,-1338.344423,0.00017534,2]
[369038539,1751441450967,-460.0,0.00017534,2]
[369038541,1751441450976,-460.0,0.00017534,2]
[369038542,1751441450986,-460.0,0.00017534,2]
[369038544,1751441450995,-438.56377557,0.00017534,2]
[369038545,1751441451005,-460.0,0.00017534,2]
[369038547,1751441451015,-151.0,0.00017534,2]
[369038549,1751441451025,-460.0,0.00017534,2]
[369038550,1751441451034,-460.0,0.00017534,2]
[369038552,1751441451044,-460.0,0.00017534,2]
[369038554,1751441451058,-460.0,0.00017534,2]
[369038556,1751441451067,-556.67,0.00017534,2]
[369038557,1751441451076,-659.26,0.00017534,2]
[369038558,1751441451085,-460.0,0.00017534,2]
[369038559,1751441451094,-460.0,0.00017534,2]
[369038560,1751441451103,-460.0,0.00017534,2]
[369038561,1751441451112,-168.046531,0.00017534,2]
[369038562,1751441451122,-168.046531,0.00017534,2]
[369038563,1751441451131,-460.0,0.00017534,2]
[369038564,1751441451140,-151.0,0.00017534,2]
[369038565,1751441451149,-547.13,0.00017534,2]
[369038566,1751441451158,-460.0,0.00017534,2]
[369038567,1751441451167,-705.14,0.00017534,2]
[369038568,1751441451176,-1940.82,0.00017534,2]
[369038569,1751441451185,-460.0,0.00017534,2]
[369038570,1751441451194,-460.0,0.00017534,2]
[369038571,1751441451203,-163.19,0.00017534,2]
[369038572,1751441451212,-460.0,0.00017534,2]
[369038573,1751441451221,-460.0,0.00017534,2]
[369038574,1751441451230,-712.66,0.00017534,2]
[369038575,1751441451240,-460.0,0.00017534,2]
[369038576,1751441451250,-460.0,0.00017534,2]
[369038577,1751441451259,-460.0,0.00017534,2]
[369038578,1751441451268,-819.74,0.00017534,2]
[369038579,1751441451277,-5214.35,0.00017534,2]
[369038580,1751441451286,-151.0,0.00017534,2]
[369038581,1751441451295,-151.0,0.00017534,2]
[369038582,1751441451305,-1560.64,0.00017534,2]
[369038583,1751441451314,-460.0,0.00017534,2]
[369038584,1751441451323,-664.930069,0.00017534,2]
[369038585,1751441451332,-664.930069,0.00017534,2]
[369038587,1751441451342,-821.2,0.00017534,2]
[369038588,1751441451351,-646.41,0.00017534,2]
[369038589,1751441451360,-1196.87,0.00017534,2]
[369038591,1751441451369,-3084.42,0.00017534,2]
[369038593,1751441451378,-1468.84,0.00017534,2]
[369038595,1751441451387,-506.74693729,0.00017534,2]
[369038597,1751441451396,-460.0,0.00017534,2]
[369038599,1751441451405,-460.0,0.00017534,2]
[369038601,1751441451414,-460.0,0.00017534,2]
[369038603,1751441451423,-460.0,0.00017534,2]
[369038605,1751441451432,-460.0,0.00017534,2]
[369038606,1751441451442,-825.96,0.00017534,2]
[369038608,1751441451452,-635.85,0.00017534,2]
[369038611,1751441451461,-2951.4,0.00017534,2]
[369038613,1751441451470,-394.04018953,0.00017534,2]
[369038614,1751441451479,-460.0,0.00017534,2]
[369038617,1751441451488,-460.0,0.00017534,2]
[369038619,1751441451498,-1024.46,0.00017534,2]
[369038621,1751441451507,-744.53,0.00017534,2]
[369038623,1751441451516,-460.0,0.00017534,2]
[369038625,1751441451526,-151.0,0.00017534,2]
[369038627,1751441451535,-153.373957,0.00017534,2]
[369038629,1751441451545,-460.0,0.00017534,2]
[369038631,1751441451554,-460.0,0.00017534,2]
[369038633,1751441451567,-1355.15,0.00017534,2]
[369038635,1751441451576,-151.0,0.00017534,2]
[369038637,1751441451585,-153.373957,0.00017534,2]
[369038639,1751441451595,-460.0,0.00017534,2]
[369038641,1751441451604,-460.0,0.00017534,2]
[369038643,1751441451613,-632.78,0.00017534,2]
[369038645,1751441451623,-700.68142,0.00017534,2]
[369038647,1751441451632,-460.0,0.00017534,2]
[369038649,1751441451641,-700.68142,0.00017534,2]
[369038651,1751441451650,-460.0,0.00017534,2]
[369038653,1751441451659,-460.0,0.00017534,2]
[369038655,1751441451668,-460.0,0.00017534,2]
[369038657,1751441451677,-460.0,0.00017534,2]
[369038659,1751441451687,-460.0,0.00017534,2]
[369038661,1751441451696,-460.0,0.00017534,2]
[369038663,1751441451705,-460.0,0.00017534,2]
[369038665,1751441451714,-2453.99,0.00017534,2]
[369038667,1751441451724,-1406.74,0.00017534,2]
[369038669,1751441451733,-151.0,0.00017534,2]
[369038671,1751441451742,-726.69,0.00017534,2]
[369038673,1751441451752,-460.0,0.00017534,2]
[369038675,1751441451761,-2646.04,0.00017534,2]
[369038677,1751441451771,-460.0,0.00017534,2]
[369038679,1751441451780,-151.0,0.00017534,2]
[369038681,1751441451788,-460.0,0.00017534,2]
[369038683,1751441451798,-898.21,0.00017534,2]
[369038685,1751441451807,-151.0,0.00017534,2]
[369038687,1751441451816,-570.93987449,0.00017534,2]
[369038689,1751441451825,-3391.71,0.00017534,2]
[369038691,1751441451834,-660.44,0.00017534,2]
[369038693,1751441451844,-585.11,0.00017534,2]
[369038695,1751441451853,-460.0,0.00017534,2]
[369038697,1751441451863,-716.13,0.00017534,2]
[369038699,1751441451872,-460.0,0.00017534,2]
[369038701,1751441451881,-635.3,0.00017534,2]
[369038703,1751441451890,-460.0,0.00017534,2]
[369038705,1751441451900,-208.54623544,0.00017534,2]
[369038707,1751441451909,-151.0,0.00017534,2]
[369038709,1751441451919,-460.0,0.00017534,2]
[369038711,1751441451929,-460.0,0.00017534,2]
[369038713,1751441451942,-460.0,0.00017534,2]
[369038715,1751441451952,-151.0,0.00017534,2]
[369038717,1751441451966,-460.0,0.00017534,2]
[369038719,1751441451975,-460.0,0.00017534,2]
[369038721,1751441451985,-608.54,0.00017534,2]
[369038723,1751441451994,-965.77,0.00017534,2]
[369038725,1751441452003,-1763.88,0.00017534,2]
[369038727,1751441452014,-633.96,0.00017534,2]
[369038729,1751441452023,-460.0,0.00017534,2]
[369038731,1751441452032,-465.17,0.00017534,2]
[369038733,1751441452041,-4271.35,0.00017534,2]
[369038735,1751441452051,-460.0,0.00017534,2]
[369038737,1751441452060,-1528.22,0.00017534,2]
[369038740,1751441452070,-151.0,0.00017534,2]
[369038741,1751441452079,-552.73,0.00017534,2]
[369038744,1751441452089,-478.14271446,0.00017534,2]
[369038745,1751441452098,-5813.8,0.00017534,2]
[369038747,1751441452107,-605.07,0.00017534,2]
[369038750,1751441452117,-1964.86,0.00017534,2]
[369038752,1751441452126,-460.0,0.00017534,2]
[369038754,1751441452136,-460.0,0.00017534,2]
[369038755,1751441452144,-585.87,0.00017534,2]
[369038758,1751441452155,-1257.46,0.00017534,2]
[369038759,1751441452164,-560.53,0.00017534,2]
[369038761,1751441452174,-460.0,0.00017534,2]
[369038763,1751441452184,-460.0,0.00017534,2]
[369038766,1751441452194,-460.0,0.00017534,2]
[369038768,1751441452203,-650.11,0.00017534,2]
[369038770,1751441452212,-616.68,0.00017534,2]
[369038772,1751441452221,-500.0,0.00017561,2]
[369038774,1751441452231,-1500.0,0.00017568,2]
[369038776,1751441452240,-1077.09085852,0.00017585,2]
[369038778,1751441452249,-500.0,0.00017589,2]
[369038780,1751441452258,-151.0,0.000176,2]
[369038782,1751441452267,-500.0,0.00017616,2]
[369038784,1751441452277,-500.0,0.00017644,2]
[369038786,1751441452286,-151.0,0.00017644,2]
[369038788,1751441452295,-500.0,0.00017671,2]
[369038790,1751441452304,-500.0,0.00017698,2]
[369038792,1751441452314,-151.0,0.000177,2]
[369038794,1751441452323,-1721.05050748,0.00017708,2]
[369038796,1751441452332,-250.0,0.00017726,2]
[369038798,1751441452342,-151.0,0.00017805,2]
[369038800,1751441452352,-357.17285488,0.00017808,2]
[369038802,1751441452362,-209.060974,0.00017808,2]
[369038804,1751441452370,-460.0,0.00017808,2]
[369038806,1751441452380,-731.405014,0.00017808,2]
[369038807,1751441452390,-731.405014,0.00017808,2]
[369038809,1751441452399,-213.002438,0.00017808,2]
[369038811,1751441452408,-213.002438,0.00017808,2]
[369038813,1751441452418,-460.0,0.00017808,2]
[369038815,1751441452427,-151.0,0.00017808,2]
[369038817,1751441452436,-460.0,0.00017808,2]
[369038819,1751441452445,-520.175804,0.00017808,2]
[369038821,1751441452454,-460.0,0.00017808,2]
[369038823,1751441452463,-460.0,0.00017808,2]
[369038825,1751441452472,-151.0,0.00017808,2]
[369038827,1751441452480,-151.0,0.00017808,2]
[369038829,1751441452490,-151.0,0.00017808,2]
[369038831,1751441452499,-460.0,0.00017808,2]
[369038833,1751441452508,-262.228203,0.00017808,2]
[369038835,1751441452517,-262.228203,0.00017808,2]
[369038837,1751441452527,-151.0,0.00017808,2]
[369038839,1751441452536,-460.0,0.00017808,2]
[369038841,1751441452545,-460.0,0.00017808,2]
[369038843,1751441452554,-151.0,0.00017808,2]
[369038845,1751441452564,-151.0,0.00017808,2]
[369038848,1751441452574,-460.0,0.00017808,2]
[369038850,1751441452585,-735.62,0.00017808,2]
[369038852,1751441452596,-700.62,0.00017808,2]
[369038854,1751441452605,-460.0,0.00017808,2]
[369038855,1751441452615,-460.0,0.00017808,2]
[369038858,1751441452624,-460.0,0.00017808,2]
[369038859,1751441452634,-469.0,0.00017808,2]
[369038862,1751441452643,-460.0,0.00017808,2]
[369038864,1751441452652,-536.5,0.00017808,2]
[369038865,1751441452662,-460.0,0.00017808,2]
[369038868,1751441452672,-460.0,0.00017808,2]
[369038869,1751441452682,-460.0,0.00017808,2]
[369038872,1751441452691,-460.0,0.00017808,2]
[369038874,1751441452700,-175.92468,0.00017808,2]
[369038876,1751441452711,-193.65232267,0.00017808,2]
[369038878,1751441452721,-460.0,0.00017808,2]
[369038880,1751441452731,-460.0,0.00017808,2]
[369038882,1751441452741,-471.973154,0.00017808,2]
[369038884,1751441452750,-471.973154,0.00017808,2]
[369038886,1751441452759,-151.0,0.00017808,2]
[369038888,1751441452769,-151.0,0.00017808,2]
[369038890,1751441452778,-151.0,0.00017808,2]
[369038892,1751441452787,-491.42533964,0.00017808,2]
[369038894,1751441452797,-460.0,0.00017808,2]
[369038896,1751441452806,-460.0,0.00017808,2]
[369038898,1751441452815,-460.0,0.00017808,2]
[369038900,1751441452824,-460.0,0.00017808,2]
[369038902,1751441452834,-460.0,0.00017808,2]
[369038904,1751441452843,-345.22032504,0.00017808,2]
[369038906,1751441452853,-460.0,0.00017808,2]
[369038908,1751441452863,-460.0,0.00017808,2]
[369038910,1751441452872,-556.67,0.00017808,2]
[369038912,1751441452881,-659.26,0.00017808,2]
[369038914,1751441452891,-460.0,0.00017808,2]
[369038916,1751441452900,-460.0,0.00017808,2]
[369038918,1751441452909,-460.0,0.00017808,2]
[369038920,1751441452918,-168.046531,0.00017808,2]
[369038922,1751441452927,-168.046531,0.00017808,2]
[369038924,1751441452938,-460.0,0.00017808,2]
[369038926,1751441452949,-151.0,0.00017808,2]
[369038928,1751441452958,-547.13,0.00017808,2]
[369038930,1751441452967,-399.28335597,0.00017808,2]
[369038932,1751441452976,-705.14,0.00017808,2]
[369038934,1751441452986,-1940.82,0.00017808,2]
[369038936,1751441452995,-460.0,0.00017808,2]
[369038938,1751441453004,-460.0,0.00017808,2]
[369038940,1751441453014,-339.97630284,0.00017808,2]
[369038942,1751441453023,-712.66,0.00017808,2]
[369038944,1751441453032,-460.0,0.00017808,2]
[369038946,1751441453041,-460.0,0.00017808,2]
[369038948,1751441453050,-819.74,0.00017808,2]
[369038950,1751441453059,-5214.35,0.00017808,2]
[369038952,1751441453068,-151.0,0.00017808,2]
[369038954,1751441453077,-151.0,0.00017808,2]
[369038956,1751441453087,-1560.64,0.00017808,2]
[369038958,1751441453096,-460.0,0.00017808,2]
[369038960,1751441453105,-664.930069,0.00017808,2]
[369038962,1751441453114,-664.930069,0.00017808,2]
[369038964,1751441453123,-821.2,0.00017808,2]
[369038966,1751441453132,-646.41,0.00017808,2]
[369038968,1751441453142,-1196.87,0.00017808,2]
[369038970,1751441453151,-3084.42,0.00017808,2]
[369038972,1751441453160,-1468.84,0.00017808,2]
[369038974,1751441453169,-460.0,0.00017808,2]
[369038975,1751441453178,-460.0,0.00017808,2]
[369038977,1751441453187,-460.0,0.00017808,2]
[369038979,1751441453196,-460.0,0.00017808,2]
[369038981,1751441453205,-460.0,0.00017808,2]
[369038983,1751441453214,-825.96,0.00017808,2]
[369038985,1751441453223,-635.85,0.00017808,2]
[369038987,1751441453232,-2951.4,0.00017808,2]
[369038989,1751441453241,-460.0,0.00017808,2]
[369038991,1751441453251,-460.0,0.00017808,2]
[369038993,1751441453260,-1024.46,0.00017808,2]
[369038996,1751441453270,-744.53,0.00017808,2]
[369038998,1751441453279,-460.0,0.00017808,2]
[369039000,1751441453288,-151.0,0.00017808,2]
[369039002,1751441453298,-460.0,0.00017808,2]
[369039004,1751441453307,-460.0,0.00017808,2]
[369039006,1751441453317,-1355.15,0.00017808,2]